Cogmind - Beta 13 X1 @@@ ROGUE MODE // 2023.08.22 @ 10:59:29 Player: VR-DUX Result: Destroyed by Y-54 Guardian with Flak Gun Performance ------------- Evolutions (0) 0 Regions Visited (3) 600 Robots Destroyed (40) 200 Value Destroyed (895) 895 Prototype IDs (11) 220 Alien Tech Used (0) 0 Bonus (-155) -155 TOTAL SCORE: 1760 Bonus ------- Friendly Fire -155 Cogmind --------- Core Integrity 0/250 Matter 300/300 Energy 13/125 System Corruption 1% Temperature Cool (18) Movement Treading (160) Location -7/Recycling Parts ------- > --- POWER (1+1) ------ Light Ion Engine > --- PROPULSION (2) --- Light Treads Light Treads > --- UTILITY (2) ------ Improved Heat Sink (fused) Large Storage Unit > --- WEAPON (2) ------- Powered Cannon > --- INVENTORY (15) --- Makeshift Power Source Light Treads Light Treads Scrap Engine Medium Storage Unit Large Storage Unit V3-11A's Pendant EM Pulse Gun Riot Gun Medium Laser Subdweller Beam Cannon Assault Rifle Subdweller Machine Gun Grenade Launcher Peak State ------------ > --- POWER ------------ Light Ion Engine > --- PROPULSION ------- Light Treads Light Treads > --- UTILITY ---------- Improved Heat Sink Large Storage Unit > --- WEAPON ----------- Powered Cannon > --- INVENTORY -------- Makeshift Power Source Light Treads Light Treads Scrap Engine Medium Storage Unit Large Storage Unit V3-11A's Pendant EM Pulse Gun Riot Gun Medium Laser Subdweller Beam Cannon Assault Rifle Subdweller Machine Gun Grenade Launcher [Rating: 24] Favorites ----------- Power Ion Engine Engine Ion Engine Propulsion Light Treads Treads Light Treads Leg Aluminum Leg Utility Large Storage Unit Device Structural Scanner Storage Large Storage Unit Protection Makeshift Armor Plating Weapon Grenade Launcher Energy Gun EM Pulse Gun Energy Cannon Powered Cannon Ballistic Gun Assault Rifle Launcher Grenade Launcher Special Weapon Mining Laser Build | -11 -10 -10 -7 ------- Run | Jun Mat Sub Rec Slots Evolved . | . . . . Power . | . . . . Propulsion . | . . . . Utility . | . . . . Weapon . | . . . . Parts Attached 24 | . 9 13 2 Power 3 | . 1 2 . Engine 3 | . 1 2 . Core . | . . . . Reactor . | . . . . Propulsion 5 | . 3 1 1 Treads 4 | . 2 1 1 Leg 1 | . 1 . . Wheel . | . . . . Hover . | . . . . Flight . | . . . . Utility 5 | . 2 2 1 Device 3 | . 1 1 1 Storage 1 | . 1 . . Processor . | . . . . Hackware . | . . . . Protection 1 | . . 1 . Artifact . | . . . . Weapon 11 | . 3 8 . Energy Gun 2 | . . 2 . Energy Cannon 1 | . . 1 . Ballistic Gun 1 | . 1 . . Ballistic Cannon . | . . . . Launcher 5 | . 2 3 . Special Weapon 2 | . . 2 . Impact Weapon . | . . . . Slashing Weapon . | . . . . Piercing Weapon . | . . . . Special Melee Weapon . | . . . . Unidentified Prototypes 1 | . . 1 . Parts Lost 4 | . . 4 . Power . | . . . . Propulsion 1 | . . 1 . Utility 1 | . . 1 . Weapon 2 | . . 2 . Highest Loss Streak 1 | . . 1 . To Critical Strikes . | . . . . Average Slot Usage (%) 93 | . 97 94 74 Engine 13 | . 14 13 12 Treads 24 | . 11 27 25 Leg 3 | . 16 . . Device 6 | . 10 4 11 Storage 14 | . 15 13 12 Protection 3 | . . 4 . Energy Gun 1 | . 1 . . Energy Cannon 1 | . . . 12 Ballistic Gun 2 | . 13 . . Launcher 11 | . 12 13 . Special Weapon 9 | . . 13 . Naked Turns . | . . . . Heaviest Build 35 | 14 35 33 33 Greatest Support 40 | 20 40 40 40 Greatest Overweight (x) 2 | . 2 1 . Average Overweight (x) . | . . . . Largest Inventory Capacity 15 | 8 15 15 15 Average Capacity 14 | 8 14 15 15 Most Carried 15 | 6 15 15 15 Average Carried 13 | 5 12 14 14 Final Capacity 15 | 8 15 15 15 Final Carried 15 | 5 15 12 15 Class Distribution -------------------- 100% | Mutant Dominant Class ---------------- Mutant | -10/Materials Mutant | -10/Subcaves Mutant | -7/Recycling Resources | -11 -10 -10 -7 ----------- Run | Jun Mat Sub Rec Matter Collected 1247 | 224 164 709 150 Remotely . | . . . . Salvage Created 622 | 30 213 313 66 Parts 69 | 2 30 32 5 Haulers Intercepted 2 | . 2 . . Recyclers Shooed . | . . . . Parts Field Recycled . | . . . . Retrieved Matter . | . . . . Parts Self-Destructed 12 | . . 12 . Prevented . | . . . . Kills | -11 -10 -10 -7 ------- Run | Jun Mat Sub Rec Combat Hostiles Destroyed 29 | . 8 20 1 Cannons 1 | . . . 1 AOE 28 | . 8 20 . Classes Destroyed 10 | 1 6 2 1 Worker 2 | . 2 . . Builder 1 | . 1 . . Tunneler 1 | 1 . . . Hauler 2 | . 2 . . Turret 2 | . . 2 . Watcher 2 | . 2 . . Swarmer 13 | . 6 7 . Grunt 2 | . 2 . . Sentry 1 | . . . 1 Subdweller 14 | . . 14 . Best Kill Streak 6 | 1 4 6 1 Combat Bots Only 4 | . 3 4 1 Max Kills in Single Turn 3 | 1 2 3 1 Gunslinging . | . . . . Exploded 3 | . 2 3 . Melee . | . . . . Uniques/NPCs Destroyed . | . . . . Combat | -11 -10 -10 -7 -------- Run | Jun Mat Sub Rec Damage Taken 1087 | . 202 756 129 Core 250 | . 74 161 15 Absorbed by Shields . | . . . . Regen/Repaired (Parts) 24 | . 24 . . Core Remaining (%) 100 | 100 . . . Volleys Fired 151 | 8 44 91 8 Largest 2 | 2 2 1 1 Hottest 100 | 70 70 100 40 Shots Fired 161 | 16 45 92 8 Gun 50 | 16 34 . . Cannon 11 | . . 3 8 Launcher 63 | . 11 52 . Special 37 | . . 37 . Kinetic 41 | 8 33 . . Thermal 57 | 8 1 40 8 Explosive 63 | . 11 52 . Electromagnetic . | . . . . Robot Hit Streak 15 | 8 15 15 3 Robot Miss Streak 4 | 1 4 2 3 Penetration Max . | . . . . Secondary Targets . | . . . . Shots Hit Robots 54 | 10 24 16 4 Core Hits 61 | 2 18 40 1 Critical Kills . | . . . . Critical Parts Destroyed 1 | . 1 . . Critical Strikes 1 | . 1 . . Destroy 1 | . 1 . . Melee Attacks . | . . . . Impact . | . . . . Slashing . | . . . . Piercing . | . . . . Sneak Attacks . | . . . . Combat Hostiles . | . . . . Follow-up Attacks . | . . . . Damage Inflicted 3506 | 121 907 2284 194 Guns 405 | 121 284 . . Cannons 194 | . . . 194 Explosions 2907 | . 623 2284 . Melee . | . . . . Ramming . | . . . . Kinetic 331 | 59 272 . . Thermal 268 | 62 12 . 194 Explosive 2907 | . 623 2284 . Electromagnetic . | . . . . Impact . | . . . . Slashing . | . . . . Piercing . | . . . . Highest Corruption 1 | . 1 1 1 Average Corruption 1 | . 1 1 1 Corruption Purged . | . . . . Corruption Blocked . | . . . . Effects 27 | . 1 23 3 Message Errors 7 | . . 6 1 Matter Fused 10 | . 1 9 . Heat Flow Errors 1 | . . 1 . Energy Discharges 2 | . . 2 . Parts Fused 1 | . . . 1 Data Loss (minor) 2 | . . 2 . Data Loss (major) 2 | . . 1 1 Misfires 1 | . . 1 . Alerts 1 | . . 1 . Overload Shots . | . . . . Overflow Damage 76 | . 42 34 . Projectiles . | . . . . Explosions 76 | . 42 34 . Melee . | . . . . Knockbacks . | . . . . Impact . | . . . . Kinetic . | . . . . Secondary . | . . . . Self-Inflicted Damage 123 | . . 123 . Shots 7 | . . 7 . Rammed . | . . . . Targets Rammed . | . . . . Kicked . | . . . . Crushed . | . . . . Highest Temperature 83 | 83 9 64 20 Average Temperature 31 | 42 5 44 9 Received Heat Transfer 180 | . 18 120 42 Siege Activations . | . . . . Robots Corrupted . | . . . . Combat Hostiles . | . . . . Parts Fried . | . . . . Impact Corruptions . | . . . . Robots Melted . | . . . . Combat Hostiles . | . . . . Parts Melted 1 | . . 1 . Heat Transferred 222 | 185 37 . . Parts Sabotaged . | . . . . Parts Stolen . | . . . . Parts Stripped . | . . . . Power Chain Reactions . | . . . . Missiles Intercepted . | . . . . Alert | -11 -10 -10 -7 ------- Run | Jun Mat Sub Rec Peak Influence 372 | 5 228 . 372 Initial 348 | . 3 . 348 Average 136 | 2 58 . 308 Maximum Alert Level 1 | . 1 . 1 Low Security (%) 70 | 100 87 . 31 Level 1 29 | . 12 . 68 Level 2 . | . . . . Level 3 . | . . . . Level 4 . | . . . . Level 5 . | . . . . High Security . | . . . . Max Security . | . . . . Squads Dispatched 1 | . 1 . . Investigation . | . . . . Extermination . | . . . . Reinforcement 1 | . 1 . . Assault . | . . . . Garrison . | . . . . Intercept . | . . . . Searches Triggered . | . . . . Construction Impeded . | . . . . Haulers Reinforced . | . . . . Active Scanning Responses . | . . . . Cargo Convoy Interrupts . | . . . . Stealth | -11 -10 -10 -7 --------- Run | Jun Mat Sub Rec Distress Signals 1 | . 1 . . Communications Jammed . | . . . . Distress Signals . | . . . . Times Spotted 46 | . 14 31 1 Peak Tracking Total 5 | . 3 5 1 Tactical Retreats 2 | . . 2 . Traps | -11 -10 -10 -7 ------- Run | Jun Mat Sub Rec Traps Triggered 4 | . 4 . . Indirectly . | . . . . Trap Hack Attempts . | . . . . Triggered . | . . . . Disarmed . | . . . . Reprogrammed . | . . . . Reused . | . . . . Traps Extracted . | . . . . Installed . | . . . . Triggered . | . . . . Machines | -11 -10 -10 -7 ---------- Run | Jun Mat Sub Rec Machines Disabled 4 | . . 4 . Max in Single Turn 2 | . . 2 . Machines Repaired . | . . . . Machines Sabotaged . | . . . . Overloaded Fab Kills . | . . . . Hacking | -11 -10 -10 -7 --------- Run | Jun Mat Sub Rec Machines Accessed 9 | . 7 2 . Terminals 4 | . 4 . . Fabricators . | . . . . Repair Stations 1 | . 1 . . Recycling Units 2 | . 2 . . Scanalyzers . | . . . . Garrison Access . | . . . . Total Hacks 29 | . 19 10 . Successful 21 | . 11 10 . Failed 8 | . 8 . . Catastrophic . | . . . . Database Lockouts . | . . . . Manual 9 | . 9 . . Terminals 12 | . 12 . . Fabricators . | . . . . Repair Stations 2 | . 2 . . Recycling Units 5 | . 5 . . Scanalyzers . | . . . . Garrison Access . | . . . . Terminal Hacks 15 | . 5 10 . Record 9 | . . 9 . Robot Analysis 4 | . 4 . . Zone Layout 1 | . 1 . . Derelict Proto ID Bank 1 | . . 1 . Fabricator Hacks . | . . . . Repair Station Hacks 2 | . 2 . . Scan Component 1 | . 1 . . Repair 1 | . 1 . . Recycling Unit Hacks 4 | . 4 . . Retrieve Components 4 | . 4 . . Scanalyzer . | . . . . Garrison Access Hacks . | . . . . Unauthorized Hacks . | . . . . Terminals . | . . . . Fabricators . | . . . . Repair Stations . | . . . . Recycling Units . | . . . . Scanalyzers . | . . . . Garrison Access . | . . . . Data Cores Recovered . | . . . . Used . | . . . . Hacking Detections 3 | . 3 . . Full Trace Events . | . . . . Feedback Events . | . . . . Feedback Blocked . | . . . . Robot Schematics Acquired . | . . . . Robots Built . | . . . . Authchips . | . . . . Time . | . . . . Total Robot Build Rating . | . . . . Part Schematics Acquired . | . . . . Parts Built . | . . . . Authchips . | . . . . Time . | . . . . Total Part Build Rating . | . . . . Parts Repaired 1 | . 1 . . Time 26 | . 26 . . Parts Recycled . | . . . . Recycled Matter . | . . . . Retrieved Matter . | . . . . Retrieved Components 1 | . 1 . . Parts Scanalyzed . | . . . . Part Schematics Acquired . | . . . . Parts Damaged . | . . . . Bothacking | -11 -10 -10 -7 ------------ Run | Jun Mat Sub Rec Used RIF Installer . | . . . . Robots Hacked . | . . . . Non-combat . | . . . . Combat . | . . . . Robot Hacks Applied . | . . . . Relay Couplers Released . | . . . . Fabnet Peak Effective % . | . . . . Robots Rewired . | . . . . Allies Hacked . | . . . . Hacks Repelled . | . . . . Allies | -11 -10 -10 -7 -------- Run | Jun Mat Sub Rec Total Allies 1 | . . 1 . Largest Group 1 | . . 1 . Highest-Rated Group 19 | . . 19 . Highest-Rated Ally 19 | . . 19 . Total Orders . | . . . . Ally Attacks . | . . . . Total Damage . | . . . . Kills . | . . . . Allies Corrupted . | . . . . Allies Melted . | . . . . Intel | -11 -10 -10 -7 ------- Run | Jun Mat Sub Rec Robot Analysis Total 4 | . 4 . . Derelict Logs Recovered 2 | . . 2 . Drone Launches . | . . . . Drone Recoveries . | . . . . Exploration | -11 -10 -10 -7 ------------- Run | Jun Mat Sub Rec Turns Passed 5752 | 35 1232 3902 583 Spaces Moved 3193 | 9 586 2246 352 Core . | . . . . Treads 2852 | . 254 2246 352 Legs 341 | 9 332 . . Wheels . | . . . . Hover . | . . . . Flight . | . . . . Fastest Speed 120 | 120 120 160 160 Average Speed 162 | 120 171 160 160 Slowest Speed 260 | 120 260 240 160 Overloaded Moves . | . . . . Propulsion Burnouts . | . . . . Robots Hopped . | . . . . Cave-ins Triggered . | . . . . Exploration Rate (%) 67 | 2 96 95 76 Regions Visited 3 Branch Regions 2 Pre-discovered Areas . | . . . . Known Exits Taken 1 | . . 1 . Unknown Exits Taken 2 | 1 1 . . Scrap Searched 13 | . . 13 . Spaces Dug 1 | . . 1 . Terrain Destroyed 280 | . 49 227 4 Melee . | . . . . Projectile 7 | . . 3 4 AOE 273 | . 49 224 . Terrain Rammed . | . . . . Walls Destroyed . | . . . . Machines Disabled . | . . . . Actions | -11 -10 -10 -7 --------- Run | Jun Mat Sub Rec Total 3535 | 17 771 2381 366 Wait 125 | . 112 13 . Move 3190 | 8 585 2245 352 Hop . | . . . . Pick Up 26 | . 15 9 2 Fast Attach 5 | . 4 1 . Attach 11 | . 3 7 1 Detach 1 | . . . 1 Swap 8 | . 2 5 1 Drop 18 | 1 6 10 1 Fire 151 | 8 44 91 8 Melee . | . . . . Ram . | . . . . Kick . | . . . . Crush . | . . . . Escape Stasis . | . . . . Rewire . | . . . . Trap . | . . . . Miscellaneous . | . . . . Route ------- -11/Junkyard -10/Materials (discovered 5 exits: [*Mat x3] / [*Min] / *Sub) -10/Subcaves (discovered 3 exits: [*Mat x2] / *Rec) -7/Recycling History --------- Turn | Location | Event 20 | -11/Junkyard | Discovered new exit (range 2) 36 | -11/Junkyard | Entered Materials 217 | -10/Materials | Discovered new exit (range 12) 300 | -10/Materials | Build established: Mutant 358 | -10/Materials | Repaired Grenade Launcher 456 | -10/Materials | Discovered new exit (range 3) 900 | -10/Materials | Discovered new exit (range 8) 1132 | -10/Materials | Discovered new exit (range 15) 1202 | -10/Materials | Discovered new exit (range 5) 1268 | -10/Materials | Entered Subcaves 1402 | -10/Subcaves | A swath of the cavern ceiling suddenly collapsed 1495 | -10/Subcaves | Discovered new exit (range 13) 1638 | -10/Subcaves | Visited 4L-MR0's lab 1665 | -10/Subcaves | Found Powered Cannon 1959 | -10/Subcaves | Core integrity fell below 50% 1979 | -10/Subcaves | Shifting Twisted Machinery released Scrap Shield 2041 | -10/Subcaves | Shifting Twisted Machinery released Sub. Machine Gun 2131 | -10/Subcaves | Shifting Twisted Machinery released Mak. Power Source 2233 | -10/Subcaves | Discovered new exit (range 13) 2851 | -10/Subcaves | Identified exit to Recycling 2979 | -10/Subcaves | Visited Clippyterm 3092 | -10/Subcaves | Core integrity fell below 20% 3769 | -10/Subcaves | A swath of the cavern ceiling suddenly collapsed 3943 | -10/Subcaves | Learned Materials stockpile data 4462 | -10/Subcaves | Visited triangular shrine 4472 | -10/Subcaves | Found Prototype Device 4472 | -10/Subcaves | Identified V3-11A's Pendant 4477 | -10/Subcaves | Befriended Subdweller 5064 | -10/Subcaves | Shifting Twisted Machinery released Riot Gun 5070 | -10/Subcaves | Shifting Twisted Machinery released Sub. Laser 5151 | -10/Subcaves | Attached Powered Cannon, gained temporary slot: Power 5170 | -10/Subcaves | Entered Recycling 5199 | -7/Recycling | Found Scrap Engine 5753 | -7/Recycling | Destroyed by Y-54 Guardian with Flak Gun Last Messages --------------- 05151_ Core temporarily expanded with Power slot. A mysterious object appears at your location! LOCATION=RECYCLING GOAL=ESCAPE 05174_ Y-54 Guardian destroyed. 05179_ Acquired 66 matter. 05189_ Acquired Imp. Heat Sink. 05192_ Dropped Med. Laser. 05199_ Acquired Scrap Engine. 05218_ R-06 Scavenger collects Imp. Deuterium Engine. 05221_ R-06 Scavenger collects Flak Gun. 05225_ R-06 Scavenger collects Med. Laser. 05225_ R-06 Scavenger collects Imp. Light Armor Plating. 05254_ U-05 Engineer builds a Wall. 05404_ RT,,L,23WERN03#V:KXWYWMJKRSIGRX,TQ# 05449_ System corrupted: Imp. Heat Sink fused. 05591_ Acquired 83 matter. 05593_ Acquired 1 matter. 05731_ System corrupted: Substantial component data lost. 05745_ Y-54 Guardian springs to life. Map ----- +----------------------------------------------------+ | ??????# # # #?????????????? | | ??????# # # #?????????????? | | ??????########## # ##????????????? | | ???????????????# # #????????????? | | ??#######??????# # ##????????????? | | ### ######?# + #?????????????? | | ##[[ #?# # #?????????????? | | ## [### # #?????????????? | | ## ####?????????????? | | ### ##### ##"#?##????????????????? | | #####+#######+####???????????????????? | | #??????????? #???????? | | #??????????? #???????? | | ##?????????? #???????? | | #?????????? #???????? | | ##?????????? #???????? | | #??????????? #???????? | | #??????????? #???????? | | #??????????# #???????? | | #??????????# #???????? | | ###############??????????# #???????? | | ????????????????#""??????# #???????? | | ???????????######"Y"###### #???????? | | ?????????? #???????? | | ?????????? #???????? | | ?????????? @ #######?? | | ?????????????????#########Y # ##? | | ????????????????????????# # ?? | | ????????????????########## # #?? | | ????????????????# # # #?? | | ????????????????# # # #?? | | ????????????????# # # #?? | | ????????????????# # # #?? | | ????????????????# + + #?? | | ???????????????# # # #?? | | ???????????????## # # #?? | | ???????? ?????# # # #?? | | ?????? ?????# # # #?? | | ??? ?????######## # # #?? | | ? ????????????### # #?? | | ? #???##????????# # #?? | | ?? ##### ######### ##+####?? | | ??? # # #????? | | ???? # ! ?+ #????? | | ?????# #? ] ???# #????? | | ?????# #??? ?????# #????? | | ?????+ #????#+######## #????? | | ??????# #????# #????? | | ??????# ###### #####+###+#????? | | ??????# #?? ???????? | +----------------------------------------------------+ Best States ------------- Heat Dissipation 39 Energy Generation 10 Energy Capacity 250 Matter Stores 300 Matter Capacity 300 Sight Range 16 Terrain Scan Density 10 Armor Coverage 100 Evasion (%) 55 Recoil Reduction 2 Item Schematics ----------------- None Robot Schematics ------------------ None Fabricated ------------ Nothing Alien Tech Used ----------------- None Achievements -------------- None Challenges ------------ None Game ------ Seed SensorThrowingSabre Manual? 0 Play Time 00:37:03 Cumulative 68.5 hours Start 2023.08.22 @ 07:39:22 End 2023.08.22 @ 10:59:29 Sessions 2 Manual Loads 0 Difficulty Rogue Special Mode None Game No. 55 Rogue 55 Adventurer 0 Explorer 0 Win Type - Total 1 Types 1/0/0/0/0/0/0/0/0 Lore% 40 Gallery% 34 Achievement% 37 Wizard Run 0 Options --------- ASCII 0 Keyboard 0 Movement Mouse Keybinds 0 Fullscreen 1 Font 16/SmallcapsGlow Map View 84x54 Tactical HUD 1 Map Filters NONE Filters NONE Steam 1 RUN: c604bed6-8d2d-4a8f-bfa1-146eb1bc7bb6